bitfinex-derivatives/quotes_ETHF0:USTF0_20241022
["timestamp","ask_amount","ask_price","bid_price","bid_amount"]
[1729624036680,1.75055,2628.9,2628.6,0.8062]
[1729624036681,1.37,2628.9,2628.6,0.8062]
[1729624036887,1.37,2628.7,2628.6,1.37]
[1729624037082,0.38059,2628.7,2628.6,1.75059]
[1729624037386,0.38059,2628.7,2628.6,1.37]
[1729624038085,0.78559,2628.7,2628.6,1.37]
[1729624039885,0.78559,2628.7,2628.6,1.7506]
[1729624041683,0.78559,2628.7,2628.6,1.45256538]
[1729624041879,0.78559,2628.7,2628.6,1.37]
[1729624042588,0.78559,2628.7,2628.6,1.7506]
[1729624044287,0.38057,2628.9,2628.8,0.38055]
[1729624044482,0.38057,2628.9,2628.8,1.75055]
[1729624045287,1.75057,2628.9,2628.8,1.75055]
[1729624047289,1.37,2628.9,2628.8,1.75055]
[1729624047490,1.37,2628.9,2628.8,1.5407029]
[1729624048695,1.17565,2629.0,2628.9,0.38055]
[1729624048696,2.54565,2629.0,2628.9,0.38055]
[1729624049094,2.54565,2629.0,2628.9,0.78445]
[1729624049499,2.1651,2629.0,2628.9,0.78445]
[1729624049698,2.54564,2629.0,2628.9,0.78445]
[1729624053202,2.1651,2629.0,2628.9,0.78445]
[1729624053796,2.54564,2629.0,2628.9,0.78445]
[1729624054200,0.7951,2629.0,2628.9,2.15445]
[1729624054398,0.394,2629.0,2628.9,2.15445]
[1729624054798,0.80273,2629.1,2629.0,0.38054]
[1729624055001,2.57443,2629.1,2629.0,0.38054]
[1729624055897,0.8239,2629.1,2629.0,0.38054]
[1729624056596,0.8239,2629.1,2628.9,2.2024]
[1729624056597,0.8239,2629.1,2628.9,4.85630383]
[1729624056904,2.57442,2629.1,2629.0,0.38054]
[1729624057092,2.57442,2629.1,2628.9,4.8519406]
[1729624057697,2.57442,2629.1,2628.9,1.6441406]
[1729624057994,2.1939,2629.1,2629.0,0.38054]
[1729624058502,2.1939,2629.1,2628.9,0.6546906]
[1729624058705,0.38055,2628.9,2628.8,3.58836]
[1729624058906,1.75055,2628.9,2628.8,3.58836]
[1729624059110,2.15945,2628.9,2628.8,3.58836]
[1729624060996,2.15945,2628.9,2628.8,0.38056]
[1729624062608,2.15945,2628.9,2628.7,4.28403501]
[1729624062807,0.81487,2628.8,2628.7,4.66461501]
[1729624065608,0.81487,2628.8,2628.7,1.45681501]
[1729624065799,0.4343,2628.8,2628.7,4.66461501]
[1729624066807,1.37,2629.0,2628.7,8.08803501]
[1729624067009,2.17766,2629.0,2628.9,0.38054]
[1729624067622,2.17766,2629.0,2628.9,1.20934]
[1729624069008,1.7971,2629.0,2628.9,1.20934]
[1729624071808,1.7971,2629.0,2628.9,1.08840601]
[1729624074416,2.17764,2629.0,2628.9,1.08840601]
[1729624074614,2.17764,2629.0,2628.9,0.69190601]
[1729624074813,2.17764,2629.0,2628.9,0.25960601]
[1729624077816,2.17764,2629.0,2628.8,3.97694341]
[1729624078724,2.17764,2629.0,2628.8,3.2078]
[1729624078913,2.17764,2629.0,2628.8,3.58836]
[1729624078914,1.75055,2628.9,2628.8,3.58836]
[1729624079113,2.16825,2628.9,2628.8,3.58836]
[1729624079819,2.16825,2628.9,2628.8,0.38056]
[1729624092325,5.5917,2628.9,2628.6,3.2078]
[1729624092634,1.75058,2628.7,2628.6,3.58839]
[1729624092832,1.75058,2628.7,2628.6,3.2078]
[1729624093032,1.75058,2628.7,2628.6,3.5884]
[1729624093835,1.75058,2628.7,2628.6,3.22956001]
[1729624097037,1.75058,2628.7,2628.6,0.3806]
[1729624098433,1.75058,2628.7,2628.5,1.37]
[1729624098434,0.3806,2628.6,2628.5,0.38061]
[1729624098738,2.5705,2628.6,2628.5,0.38061]
[1729624100234,2.1899,2628.6,2628.4,4.5778]
[1729624100439,0.38066,2628.2,2628.1,0.38065]
[1729624100638,1.37,2628.3,2628.1,1.37]
[1729624100938,1.37,2628.3,2628.2,2.17655]
[1729624101343,1.37,2628.3,2628.2,0.80655]
[1729624102243,1.75064,2628.3,2628.2,0.80655]
[1729624107445,1.37,2628.3,2628.2,0.4259]
[1729624107650,1.37,2628.3,2628.2,0.80655]
[1729624108352,0.3887,2628.5,2628.2,1.7959]
[1729624108547,0.76932,2628.5,2628.4,0.38063]
[1729624108750,2.13932,2628.5,2628.4,0.38063]
[1729624109852,0.38063,2628.4,2628.3,0.79933]
[1729624110049,1.75063,2628.4,2628.3,0.79933]
[1729624110650,1.37,2628.4,2628.3,0.79933]
[1729624110846,1.75063,2628.4,2628.3,0.79933]
[1729624111951,0.8199,2628.6,2628.3,1.7887]
[1729624112247,2.57051,2628.6,2628.5,0.38061]
[1729624112656,2.57051,2628.6,2628.5,0.80301]
[1729624116853,2.57051,2628.6,2628.5,0.38061]
[1729624118049,0.38063,2628.4,2628.3,1.21193]
[1729624118257,1.75063,2628.4,2628.3,1.21193]
[1729624119046,1.37,2628.4,2628.3,1.21193]
[1729624119261,1.75063,2628.4,2628.3,1.21193]
[1729624121669,1.7757,2628.6,2628.3,2.2013]
[1729624121955,1.75062,2628.5,2628.4,0.38061]
[1729624124558,1.75062,2628.5,2628.3,0.8313]
[1729624124559,0.38063,2628.4,2628.3,0.79933]
[1729624124765,2.18383,2628.4,2628.3,0.79933]
[1729624128762,1.8032,2628.4,2628.3,0.79933]
[1729624129358,2.18383,2628.4,2628.3,0.79933]
[1729624129554,2.18383,2628.4,2628.3,1.21753]
[1729624135665,2.18383,2628.4,2628.3,0.79933]
[1729624137673,1.8032,2628.4,2627.9,3.2078]
[1729624137872,1.75068,2628.0,2627.6,4.15966]
[1729624138069,1.37,2627.7,2627.6,3.58854]
[1729624138575,1.37,2627.7,2627.6,8.76414]
[1729624139566,0.38068,2628.2,2628.1,0.38066]
[1729624139771,2.17818,2628.2,2628.1,0.38066]
[1729624140172,0.38068,2628.1,2627.9,1.37]
[1729624140373,0.38068,2628.1,2628.0,0.38067]
[1729624140564,1.75068,2628.1,2628.0,0.38067]
[1729624142068,1.37,2628.1,2628.0,0.38067]
[1729624142462,1.75067,2628.1,2628.0,0.38067]
[1729624142670,1.37,2628.1,2628.0,0.38067]
[1729624142871,1.75067,2628.1,2628.0,0.38067]
[1729624143378,1.37,2628.1,2628.0,0.38067]
[1729624144081,1.75067,2628.1,2628.0,0.38067]
[1729624148777,0.38068,2628.0,2627.9,1.21579]
[1729624148982,1.37,2628.0,2627.6,3.2078]
[1729624149181,0.38073,2627.8,2627.7,0.38072]
[1729624149485,1.75073,2627.8,2627.7,0.38072]
[1729624150194,1.37,2627.8,2627.7,0.38072]
[1729624150375,1.75071,2627.8,2627.7,0.38072]
[1729624156387,0.38071,2627.8,2627.7,1.75072]
[1729624159389,2.6139,2627.9,2627.8,0.38071]
[1729624159592,1.37,2627.9,2627.8,0.38071]
[1729624159893,1.75069,2628.0,2627.9,0.3807]
[1729624160082,1.75069,2628.0,2627.9,0.8087]
[1729624161683,1.37,2628.0,2627.9,0.8087]
[1729624162080,0.4257,2628.1,2627.9,0.428]
[1729624162387,1.37,2628.1,2628.0,0.38068]
[1729624162591,0.38066,2628.2,2628.1,0.38065]
[1729624163689,1.75066,2628.2,2628.1,0.38065]
[1729624164989,1.75066,2628.2,2628.1,1.75065]
[1729624164990,1.37,2628.2,2628.1,1.75065]
[1729624165384,1.37,2628.2,2628.1,2.18165]
[1729624165578,1.37,2628.2,2628.1,0.81165]
[1729624168494,0.79344,2628.3,2628.2,0.38065]
[1729624168687,2.16344,2628.3,2628.2,0.38065]
[1729624170494,2.16344,2628.3,2627.9,0.428]
[1729624170495,3.1528,2628.3,2627.9,0.428]
[1729624170694,0.81087,2628.2,2628.1,0.38066]
[1729624170893,2.18087,2628.2,2628.1,0.38066]
[1729624173699,0.4128,2628.3,2628.2,0.38065]
[1729624173700,0.79345,2628.3,2628.2,0.38065]
[1729624173894,2.16345,2628.3,2628.2,0.38065]
[1729624174399,1.7828,2628.3,2628.2,0.38065]
[1729624175702,0.4182,2628.5,2628.4,0.38063]
[1729624176002,2.1974,2628.5,2628.4,0.38063]
[1729624176704,2.57801,2628.5,2628.4,0.38063]
[1729624178010,0.8274,2628.5,2628.4,0.38063]
[1729624178206,0.4092,2628.5,2628.4,2.16873]
[1729624178409,1.7792,2628.5,2628.4,2.16873]
[1729624180809,1.7792,2628.5,2628.2,0.95163]
[1729624180810,2.15981,2628.5,2628.1,1.37766]
[1729624181014,0.38064,2628.4,2628.3,0.38063]
[1729624182006,1.75064,2628.4,2628.3,0.38063]
[1729624188014,1.37,2628.4,2628.3,0.38063]
[1729624191219,1.60161,2628.5,2628.4,0.38063]
[1729624191220,2.591,2628.5,2628.4,0.38063]
[1729624193115,3.2078,2628.8,2628.4,5.55543]
[1729624193415,1.7947,2628.7,2628.6,0.3806]
[1729624193719,2.17528,2628.7,2628.6,0.3806]
[1729624193908,1.7947,2628.7,2628.6,0.3806]
[1729624195312,2.17528,2628.7,2628.6,0.3806]
[1729624195523,1.7947,2628.7,2628.6,0.3806]
[1729624199927,2.17528,2628.7,2628.6,0.3806]
[1729624201126,1.7947,2628.7,2628.6,0.3806]
[1729624201524,1.7947,2628.7,2628.6,0.792]
[1729624201725,2.17528,2628.7,2628.6,0.792]
[1729624202226,1.7947,2628.7,2628.6,0.792]
[1729624205940,2.17528,2628.7,2628.6,0.792]
[1729624206125,2.17528,2628.7,2628.6,2.162]
[1729624206126,0.4247,2628.7,2628.6,2.162]
[1729624206324,3.70063838,2629.2,2629.0,0.38052]
[1729624206325,0.38054,2629.1,2629.0,0.38052]
[1729624206535,2.14834,2629.1,2629.0,0.38052]
[1729624207128,0.3978,2629.1,2629.0,1.75052]
[1729624207631,0.3978,2629.1,2629.0,5.55452]
[1729624208431,1.7678,2629.1,2629.0,5.55452]
[1729624209430,1.7678,2629.1,2629.0,4.18452]
[1729624210337,1.7678,2629.1,2629.0,0.38052]
[1729624211835,1.37,2629.1,2629.0,5.55452]
[1729624212235,0.821,2629.3,2629.2,0.38051]
[1729624212435,2.191,2629.3,2629.2,0.38051]
[1729624212634,2.191,2629.3,2629.2,1.75051]
[1729624213146,0.4146,2629.5,2629.2,1.37]
[1729624213329,0.8171,2629.6,2629.4,1.37]
[1729624213639,0.8171,2629.6,2629.5,1.75047]
[1729624213846,2.1871,2629.6,2629.5,1.75047]
[1729624214350,3.2078,2629.7,2629.6,0.38045]
[1729624214638,3.2078,2629.7,2629.6,1.75045]
[1729624215030,1.37,2629.8,2629.7,0.38044]
[1729624215232,1.7813,2629.9,2629.8,0.38042]
[1729624215534,1.7813,2629.9,2629.8,1.75042]
[1729624215535,2.16171,2629.9,2629.8,1.75042]
[1729624216536,1.7813,2629.9,2629.8,1.75042]
[1729624217340,2.16171,2629.9,2629.8,1.75042]
[1729624217542,1.7813,2629.9,2629.8,1.75042]
[1729624217748,0.4195,2630.1,2629.8,6.5424]
[1729624217950,1.2191,2630.4,2630.3,0.38035]
[1729624218152,1.2191,2630.4,2630.3,1.75035]
[1729624218354,2.96944,2630.4,2630.3,1.75035]
[1729624218644,2.96944,2630.4,2630.3,1.37]
[1729624219030,2.96944,2630.4,2630.3,1.75035]
[1729624219541,2.96944,2630.4,2630.3,1.37]
[1729624219940,1.59944,2630.4,2630.3,1.75035]
[1729624220343,1.18224,2630.4,2630.3,1.75035]
[1729624221544,2.55224,2630.4,2630.3,1.75035]
[1729624223345,2.55224,2630.4,2630.3,1.37]
[1729624223542,2.1719,2630.4,2630.1,0.7932]
[1729624223749,0.38041,2630.0,2629.9,0.3804]
[1729624223945,0.38041,2630.0,2629.9,1.7504]
[1729624224540,1.75041,2630.0,2629.9,1.37]
[1729624224851,1.75041,2630.0,2629.7,3.2078]
[1729624224852,0.38042,2629.8,2629.7,4.5778]
[1729624225145,0.38042,2629.8,2629.7,4.95824]
[1729624225736,0.7952,2629.9,2629.7,4.5778]
[1729624226043,1.17562,2629.9,2629.8,1.75042]
[1729624227850,2.54562,2629.9,2629.8,1.75042]
[1729624229845,1.17561,2629.9,2629.8,1.75042]
[1729624230451,0.7952,2629.9,2629.8,1.75042]
[1729624231750,1.17561,2629.9,2629.8,1.75042]
[1729624232948,0.7952,2629.9,2629.8,1.75042]
[1729624234445,1.17561,2629.9,2629.8,1.75042]
[1729624235043,0.7952,2629.9,2629.8,1.75042]
[1729624235848,1.17561,2629.9,2629.8,1.75042]
[1729624237246,0.7952,2629.9,2629.8,1.75042]
[1729624239147,1.17561,2629.9,2629.8,1.75042]
[1729624239347,0.7952,2629.9,2629.8,1.75042]
[1729624240353,1.17561,2629.9,2629.8,1.75042]
[1729624241754,0.7952,2629.9,2629.8,1.75042]
[1729624241954,1.17561,2629.9,2629.8,1.75042]
[1729624242451,0.7952,2629.9,2629.8,1.75042]
[1729624242955,0.7952,2629.9,2629.8,2.17412]
[1729624244057,0.79608,2630.1,2630.0,0.38039]
[1729624244357,0.79608,2630.1,2630.0,4.95819]
[1729624245559,0.38038,2630.1,2630.0,5.37329]
[1729624247556,0.8507,2630.2,2630.0,4.9929]
[1729624247854,1.23107,2630.2,2630.1,1.75038]
[1729624248156,0.8507,2630.2,2630.1,1.75038]
[1729624248363,0.4241,2630.2,2630.1,2.18458]
[1729624248859,1.37,2630.3,2630.2,0.38037]
[1729624249059,1.37,2630.3,2630.2,1.75037]
[1729624249355,0.81814,2630.4,2630.3,0.38035]
[1729624249556,0.81814,2630.4,2630.3,1.75035]
[1729624249865,2.18814,2630.4,2630.3,1.75035]
[1729624250361,0.81814,2630.4,2630.3,1.75035]
[1729624250566,2.18814,2630.4,2630.3,0.38035]
[1729624254155,2.18814,2630.4,2630.2,0.38035]
[1729624254156,0.38036,2630.3,2630.2,0.38035]
[1729624254356,1.75036,2630.3,2630.2,0.38035]
[1729624257761,0.38036,2630.3,2630.2,0.38035]
[1729624260654,0.38034,2630.5,2630.4,0.38032]
[1729624260862,2.58354,2630.5,2630.4,0.38032]
[1729624261068,2.58354,2630.5,2630.2,0.38036]
[1729624261069,0.38035,2630.3,2630.2,0.38036]
[1729624261256,1.75035,2630.3,2630.2,0.38036]
[1729624263164,1.37,2630.3,2630.1,0.4342]
[1729624263363,0.38038,2630.1,2630.0,0.79548]
[1729624263565,0.38038,2630.1,2630.0,2.16548]
[1729624263965,0.79298,2630.1,2630.0,1.75038]
[1729624265461,2.2321,2630.2,2630.0,1.75038]
[1729624265462,0.81947,2630.2,2630.1,0.38038]
[1729624265760,0.81947,2630.2,2630.1,1.75038]
[1729624265963,2.18947,2630.2,2630.1,1.75038]
[1729624266167,2.60207,2630.2,2630.1,1.75038]
[1729624267563,2.60207,2630.2,2630.1,0.38038]
[1729624272571,1.23207,2630.2,2630.1,0.38038]
[1729624272878,2.60207,2630.2,2630.1,0.38038]
[1729624273965,0.8517,2630.2,2630.1,1.75038]
[1729624274165,1.37288,2630.6,2630.1,1.75038]
[1729624274166,0.38035,2630.4,2630.3,0.38033]
[1729624274376,0.38035,2630.4,2630.3,1.75033]
[1729624279976,0.38031,2630.6,2630.5,0.38032]
[1729624280176,1.75031,2630.6,2630.5,1.75032]
[1729624281374,0.415,2630.7,2630.6,0.38031]
[1729624281577,1.785,2630.7,2630.6,0.38031]
[1729624281774,1.785,2630.7,2630.4,1.64152]
[1729624281978,1.75032,2630.5,2630.4,1.64152]
[1729624282479,0.38035,2630.3,2630.2,3.58815]
[1729624282681,2.1894,2630.4,2630.2,4.5778]
[1729624282874,2.1894,2630.4,2630.3,0.38035]
[1729624282875,2.56974,2630.4,2630.3,0.38035]
[1729624284178,0.38035,2630.3,2630.2,0.78566]
[1729624284376,1.37,2630.3,2630.1,1.75037]
[1729624284580,1.37,2630.2,2630.0,4.5778]
[1729624284782,0.38038,2630.1,2630.0,4.95819]
[1729624284977,0.81248,2630.1,2630.0,4.95819]
[1729624288281,0.81248,2630.1,2630.0,1.75039]
[1729624289883,0.38039,2630.0,2629.9,3.99349]
[1729624290090,2.18579,2630.0,2629.9,2.15569]
[1729624290281,0.81579,2630.0,2629.9,5.36349]
[1729624292392,0.81579,2630.0,2629.9,2.15569]
[1729624292587,0.81579,2630.0,2629.9,5.36349]
[1729624293180,0.81579,2630.0,2629.9,2.15569]
[1729624294692,0.38039,2630.0,2629.9,2.15569]
[1729624294992,1.8021,2630.1,2630.0,0.38039]
[1729624294993,0.4321,2630.1,2630.0,0.38039]
[1729624295195,0.4321,2630.1,2630.0,1.75039]
[1729624296198,1.8021,2630.1,2630.0,1.75039]
[1729624296386,0.4321,2630.1,2630.0,1.75039]
[1729624299397,0.38037,2630.3,2630.2,0.38036]
[1729624299604,1.75037,2630.3,2630.2,0.38036]
[1729624301701,0.4182,2630.4,2630.2,1.37]
[1729624302000,0.79854,2630.4,2630.3,0.38035]
[1729624302307,0.4182,2630.4,2630.3,0.77475]
[1729624302700,2.16854,2630.4,2630.3,0.77475]
[1729624303103,1.7882,2630.4,2630.3,0.77475]
[1729624303802,2.16854,2630.4,2630.3,0.77475]
[1729624307202,2.16854,2630.4,2630.3,0.38035]
[1729624310111,2.16854,2630.4,2630.3,0.77515]
[1729624311603,0.79854,2630.4,2630.3,0.77515]
[1729624311803,0.4182,2630.4,2630.3,0.77515]
[1729624312210,0.79854,2630.4,2630.3,0.77515]
[1729624313114,0.4182,2630.4,2630.3,0.77515]
[1729624314410,0.38031,2630.7,2630.6,0.3803]
[1729624314614,4.1585,2630.9,2630.7,0.38029]
[1729624314615,0.80528,2630.8,2630.7,0.38029]
[1729624314811,0.80528,2630.8,2630.7,1.19859]
[1729624314812,2.17528,2630.8,2630.7,1.19859]
[1729624315912,2.17528,2630.8,2630.7,0.79209]
[1729624319728,1.795,2630.8,2630.7,2.16209]
[1729624320219,2.17528,2630.8,2630.7,2.16209]
[1729624320727,2.17528,2630.8,2630.7,0.79209]
[1729624324116,1.795,2630.8,2630.7,0.79209]
[1729624324322,1.75027,2630.9,2630.8,0.38028]
[1729624324824,1.75027,2630.9,2630.8,0.80668]
[1729624325215,0.4234,2631.0,2630.8,1.7964]
[1729624325522,0.38024,2631.2,2631.1,0.38022]
[1729624325828,2.17364,2631.2,2631.1,0.38022]
[1729624326320,0.4234,2631.2,2631.1,1.75022]
[1729624326526,0.80362,2631.2,2631.1,0.38022]
[1729624326825,2.17362,2631.2,2631.1,0.38022]
[1729624327021,3.2078,2631.3,2631.1,2.1509]
[1729624327222,3.2078,2631.3,2631.2,1.75022]
[1729624327421,3.2078,2631.3,2631.2,5.55102]
[1729624327728,0.38018,2631.6,2631.5,0.38016]
[1729624328024,2.1513,2631.7,2631.5,4.5778]
[1729624328218,2.1513,2631.7,2631.6,2.17326]
[1729624328219,2.13966,2631.7,2631.6,2.17326]
[1729624328419,2.13966,2631.7,2631.6,2.56316]
[1729624329023,2.13966,2631.7,2631.6,2.183]
[1729624329724,2.13966,2631.7,2631.6,0.813]
[1729624329918,2.13966,2631.7,2631.6,0.4231]
[1729624331020,0.38016,2631.6,2631.5,3.2078]
[1729624331228,2.32043,2631.6,2631.2,0.38021]
[1729624331525,1.75021,2631.3,2631.2,0.38021]
[1729624332227,1.37,2631.3,2631.2,1.75021]
[1729624332427,1.75021,2631.4,2631.3,0.3802]
[1729624332722,1.75021,2631.4,2631.3,1.7502]
[1729624334730,1.75021,2631.4,2631.3,0.3802]
[1729624335224,1.37,2631.4,2631.1,0.4026]
[1729624335425,1.37,2631.3,2631.2,1.75021]
[1729624335634,1.75021,2631.4,2631.3,0.38021]
[1729624335828,1.75021,2631.4,2631.3,1.75021]
[1729624336030,1.75021,2631.4,2631.3,4.95801]
[1729624338235,0.4016,2631.5,2631.3,4.5778]
[1729624338438,2.15178,2631.5,2631.4,1.75019]
[1729624339037,2.15178,2631.5,2631.4,0.38019]
[1729624339735,0.38019,2631.4,2631.3,3.58799]
[1729624340039,1.75019,2631.4,2631.3,3.58799]
[1729624341233,0.38019,2631.4,2631.3,4.95799]
[1729624343632,0.38019,2631.4,2631.3,1.75019]
[1729624344239,0.38019,2631.4,2631.3,4.95799]
[1729624346631,0.38019,2631.4,2631.3,1.75019]
[1729624346840,0.38019,2631.4,2631.3,4.95801]
[1729624347130,1.75019,2631.4,2631.3,3.2078]
[1729624347434,1.75019,2631.4,2631.3,3.58801]
[1729624348732,0.38019,2631.4,2631.3,4.95801]
[1729624349430,2.15949,2631.4,2631.3,3.58801]
[1729624350636,2.15949,2631.4,2631.3,0.38021]
[1729624352334,0.38021,2631.3,2631.2,1.75021]
[1729624352536,1.7793,2631.4,2631.2,1.75021]
[1729624352740,0.38021,2631.3,2631.2,1.75021]
[1729624354040,0.76521,2631.3,2631.2,1.75022]
[1729624356737,0.4093,2631.4,2631.2,1.37]
[1729624356941,0.78949,2631.4,2631.3,1.75021]
[1729624357140,0.78949,2631.4,2631.3,2.16681]
[1729624357449,0.4093,2631.4,2631.3,2.16681]
[1729624357938,2.15949,2631.4,2631.3,0.4166]
[1729624358247,0.4093,2631.4,2631.3,1.75021]
[1729624358446,0.78949,2631.4,2631.3,1.75021]
[1729624359336,2.15949,2631.4,2631.3,0.38021]
[1729624361549,0.78949,2631.4,2631.3,0.38021]
[1729624363249,0.78949,2631.4,2631.3,1.75021]
[1729624363551,2.15949,2631.4,2631.3,0.38021]
[1729624364442,2.15949,2631.4,2631.3,1.75021]
[1729624364443,0.78949,2631.4,2631.3,1.75021]
[1729624366247,0.78949,2631.4,2631.3,0.38021]
[1729624366248,2.15949,2631.4,2631.3,0.38021]
[1729624366647,0.78949,2631.4,2631.3,0.38021]
[1729624369651,0.78949,2631.4,2631.3,1.75021]
[1729624369853,0.38019,2631.4,2631.3,2.14501]
[1729624371453,0.38019,2631.4,2631.3,0.77501]
[1729624371745,0.4016,2631.5,2631.3,1.7648]
[1729624372059,0.78179,2631.5,2631.4,0.38019]
[1729624375261,0.38019,2631.4,2631.3,0.38019]
[1729624375654,1.7716,2631.5,2631.2,3.6123]
[1729624375860,2.14411,2631.3,2631.2,3.2078]
[1729624376564,5.5647,2631.3,2630.9,3.2078]
[1729624376752,1.75025,2631.0,2630.9,3.58806]
[1729624377061,1.75025,2631.0,2630.9,1.75026]
[1729624378360,2.14415,2631.0,2630.9,1.37]
[1729624378551,2.14415,2631.0,2630.9,1.75026]
[1729624378856,2.14415,2631.0,2630.9,1.37]
[1729624379351,0.38026,2630.9,2630.8,1.75027]
[1729624379557,1.75026,2630.9,2630.8,1.75027]
[1729624380756,1.75026,2630.9,2630.8,1.37]
[1729624381160,1.75026,2630.9,2630.8,1.75028]
[1729624382161,1.75026,2630.9,2630.8,1.37]
[1729624382661,1.75026,2630.9,2630.8,1.75028]
[1729624384965,1.37,2630.9,2630.8,1.75028]
[1729624385164,1.75026,2630.9,2630.8,1.75028]
[1729624388360,1.37,2630.9,2630.8,1.75028]
[1729624388562,0.77416,2631.0,2630.9,0.38026]
[1729624388764,0.77416,2631.0,2630.9,1.75026]
[1729624391769,2.14416,2631.0,2630.9,0.38026]
[1729624392670,0.38028,2630.9,2630.8,1.75027]
[1729624392887,1.75028,2630.9,2630.8,1.75027]
[1729624393677,0.3939,2631.0,2630.8,1.37]
[1729624393678,1.7639,2631.0,2630.8,1.37]
[1729624393882,2.14416,2631.0,2630.9,0.38026]
[1729624397775,0.3939,2631.0,2630.9,1.75026]
[1729624397977,0.4131,2631.1,2631.0,0.38025]
[1729624398178,2.1717,2631.1,2631.0,0.38025]
[1729624399288,2.55194,2631.1,2631.0,0.38025]
[1729624401691,2.1717,2631.1,2630.9,3.80098065]
[1729624401888,2.1717,2631.1,2630.9,4.18124065]
[1729624401889,4.95805,2631.0,2630.9,4.18124065]
[1729624402089,4.95805,2631.0,2630.9,3.80098065]
[1729624402883,1.75025,2631.0,2630.9,3.80098065]
[1729624403581,1.75025,2631.0,2630.9,4.18124065]
[1729624403782,1.75025,2631.0,2630.9,3.80098065]
[1729624405787,1.94115812,2631.0,2630.9,3.80098065]
[1729624420304,1.75025,2631.0,2630.9,4.18124065]
[1729624421291,1.37,2631.0,2630.9,4.18124065]
[1729624421793,1.37,2631.0,2630.9,4.97174065]
[1729624423399,1.75025,2631.0,2630.9,4.97174065]
[1729624423599,1.37,2631.0,2630.9,4.97174065]
[1729624423796,0.38023,2631.3,2631.2,0.38021]
[1729624424103,5.55103,2631.3,2631.2,0.38021]
[1729624424898,0.38024,2631.2,2631.1,0.38023]
[1729624425204,1.75024,2631.2,2631.1,0.38023]
[1729624425697,0.38024,2631.1,2631.0,0.80764]
[1729624425997,1.75024,2631.1,2631.0,0.80764]
[1729624426200,1.7884,2631.1,2631.0,0.80764]
[1729624427306,1.37,2631.1,2631.0,0.80764]
[1729624427598,1.37,2631.6,2631.0,5.5982]
[1729624427794,1.75018,2631.6,2631.5,0.38017]
[1729624427993,1.37,2631.6,2631.5,0.38017]
[1729624428196,1.75016,2631.6,2631.5,1.56937]
[1729624428403,1.37,2631.6,2631.5,1.56937]
[1729624429099,1.75016,2631.6,2631.5,1.56937]
[1729624429299,1.37,2631.6,2631.5,1.56937]
[1729624429498,0.3938,2631.8,2631.5,1.1892]
[1729624429701,0.3938,2631.8,2631.5,1.56937]
[1729624429702,1.75016,2631.6,2631.5,1.56937]
[1729624432200,1.37,2631.6,2631.5,2.93937]
[1729624432407,1.75016,2631.6,2631.5,2.93937]
[1729624432705,1.37,2631.6,2631.5,2.93937]
[1729624433400,1.75016,2631.6,2631.5,2.93937]
[1729624433904,1.75016,2631.7,2631.6,0.38016]
[1729624434595,0.38016,2631.6,2631.5,2.93937]
[1729624434801,1.75016,2631.7,2631.6,0.38016]
[1729624435010,0.38016,2631.6,2631.5,2.93937]
[1729624435504,3.2078,2632.0,2631.5,6.3592]
[1729624435712,1.75012,2632.0,2631.9,0.38011]
[1729624435900,1.75012,2632.0,2631.9,1.75011]
[1729624436096,0.38012,2632.0,2631.9,5.54931]
[1729624436302,1.75011,2632.1,2632.0,0.3801]
[1729624436501,1.75011,2632.1,2632.0,2.9368]
[1729624436801,1.75011,2632.1,2632.0,1.5668]
[1729624437198,1.75011,2632.1,2632.0,1.1867]
[1729624439604,1.75011,2632.1,2632.0,1.56681]
[1729624439804,0.18604217,2632.4,2632.0,2.5567]
[1729624440002,0.18604217,2632.4,2632.2,1.75006]
[1729624440003,1.75007,2632.3,2632.2,1.75006]
[1729624440202,1.94184566,2632.3,2632.2,1.75006]
[1729624440507,1.7955,2632.4,2632.2,1.37]
[1729624440704,2.17555,2632.4,2632.3,0.38006]
[1729624440901,2.17555,2632.4,2632.3,0.80016]
[1729624441506,2.17555,2632.4,2632.3,0.4201]
[1729624442106,2.17555,2632.4,2632.3,0.80016]
[1729624442608,2.17555,2632.4,2632.3,0.38006]
[1729624443415,1.7955,2632.4,2632.1,1.37]
[1729624443717,1.37,2632.2,2632.0,0.7968]
[1729624443906,2.15009,2632.1,2632.0,0.7866]
[1729624444106,2.55819,2632.1,2632.0,0.7866]
[1729624446224,2.55819,2632.1,2632.0,0.4065]
[1729624446714,0.38015,2631.8,2631.7,0.38014]
[1729624447012,0.38015,2631.8,2631.7,1.37]
[1729624447320,0.38015,2631.8,2631.7,1.75015]
[1729624447619,2.16865,2631.8,2631.7,1.75015]
[1729624447817,0.79865,2631.8,2631.7,1.75015]
[1729624448018,0.38015,2631.8,2631.7,1.75015]
[1729624448311,0.4185,2632.0,2631.7,1.37]
[1729624448517,0.79862,2632.0,2631.9,1.75012]
[1729624448917,2.16862,2632.0,2631.9,1.75012]
[1729624449422,0.38014,2631.9,2631.8,1.75012]
[1729624449613,1.75014,2631.9,2631.8,1.75012]
[1729624453719,0.38014,2631.9,2631.8,1.75012]
[1729624454725,0.79861,2632.0,2631.9,0.38012]
[1729624454931,3.9879,2632.1,2632.0,0.38011]
[1729624455127,3.9879,2632.1,2632.0,2.14881]